Cogmind - Beta 16 @@@ ROGUE MODE // 2026.02.02 @ 19:25:41 Player: Toddbert Result: Self-destructed Performance ------------- Evolutions (4) 2000 Regions Visited (5) 1000 Robots Destroyed (23) 115 Value Destroyed (1029) 1029 Prototype IDs (0) 0 Alien Tech Used (0) 0 Bonus (0) 0 TOTAL SCORE: 4144 Bonus ------- None Cogmind --------- Core Integrity 232/850 Matter 290/300 Energy 8/100 System Corruption 1% Temperature Cool (9) Movement Core (300) Ox5 Location -6/Extension Parts ------- > --- POWER (3) -------- (None) > --- PROPULSION (4) --- (None) > --- UTILITY (4) ------ Improved Heat Sink (fused) Medium Storage Unit Improved Trap Scanner Melee Analysis Suite > --- WEAPON (4) ------- Gatling Laser > --- INVENTORY (10) --- Light Treads Myomer Leg Myomer Leg Myomer Leg Myomer Leg Wheel Compact Wheel Peak State ------------ > --- POWER ------------ Improved Deuterium Engine Improved Deuterium Engine Light Angular Momentum Engine > --- PROPULSION ------- Improved Treads Carbon-fiber Leg Improved Carbon-fiber Leg Flexi-carbon Leg > --- UTILITY ---------- Coolant Injector Small Storage Unit Medium Storage Unit Target Analyzer > --- WEAPON ----------- Gatling Laser Flak Gun Flak Gun Great Maul > --- INVENTORY -------- Light Nuclear Core Improved Deuterium Engine Light Treads Light Treads Light Treads Wheel Compact Wheel Improved Heat Sink Improved Trap Scanner Improved Light Armor Plating [Rating: 53] Favorites ----------- Power Ion Engine Engine Ion Engine Power Core Light Nuclear Core Propulsion Aluminum Leg Treads Light Treads Leg Aluminum Leg Wheel Wheel Utility Small Storage Unit Device Improved Heat Sink Storage Small Storage Unit Processor Target Analyzer Protection Improved Light Armor Plating Weapon Flak Gun Energy Gun Particle Gun Ballistic Gun Flak Gun Impact Weapon Great Maul Build | -11 -10 -10 -8 -6 -6 ------- Run | Yrd Mat Sub Scr Fac Ext Slots Evolved 8 | . . . . 8 . Power 2 | . . . . 2 . Propulsion 2 | . . . . 2 . Utility 2 | . . . . 2 . Weapon 2 | . . . . 2 . Parts Attached 46 | 6 4 . 2 7 27 Power 13 | 1 2 . 1 1 8 Engine 10 | 1 2 . . . 7 Core 3 | . . . 1 1 1 Reactor . | . . . . . . Propulsion 13 | 2 1 . . 2 8 Treads 4 | . . . . . 4 Leg 7 | 2 1 . . 2 2 Wheel 2 | . . . . . 2 Hover . | . . . . . . Flight . | . . . . . . Utility 8 | 1 . . 1 2 4 Device 3 | . . . . 1 2 Storage 2 | 1 . . . 1 . Processor 2 | . . . 1 . 1 Hackware . | . . . . . . Protection 1 | . . . . . 1 Artifact . | . . . . . . Weapon 12 | 2 1 . . 2 7 Energy Gun 6 | 1 1 . . . 4 Energy Cannon . | . . . . . . Ballistic Gun 5 | 1 . . . 1 3 Ballistic Cannon . | . . . . . . Launcher . | . . . . . . Special Weapon . | . . . . . . Impact Weapon 1 | . . . . 1 . Slashing Weapon . | . . . . . . Piercing Weapon . | . . . . . . Special Melee Weapon . | . . . . . . Unidentified Prototypes . | . . . . . . Parts Lost 35 | . . . . . 35 Power 11 | . . . . . 11 Propulsion 10 | . . . . . 10 Utility 4 | . . . . . 4 Weapon 10 | . . . . . 10 Highest Loss Streak 11 | . . . . . 11 To Critical Strikes . | . . . . . . Average Backups 6 | 2 6 7 7 6 6 Power 1 | . 2 2 2 1 . Propulsion 3 | 1 4 4 4 4 4 Utility . | . . . . . 1 Weapon . | . . 1 1 . . Tool/Special . | . . . . . . Unused Backups 6 | . . . 1 . 5 Power . | . . . . . . Propulsion 5 | . . . . . 5 Utility . | . . . . . . Weapon 1 | . . . 1 . . Tool/Special . | . . . . . . Average Slot Usage (%) 67 | . 85 85 61 82 63 Engine 7 | . 14 14 9 5 5 Core 4 | . . . 4 12 2 Treads 2 | . . . . . 5 Leg 17 | . 28 28 28 20 5 Device 4 | . . . . 5 9 Storage 10 | . 14 14 14 9 8 Processor 4 | . . . 4 6 5 Energy Gun 5 | . 14 14 . 6 6 Ballistic Gun 5 | . 14 14 . 9 6 Impact Weapon 1 | . . . . 2 3 Peak Build Rating 53 | 6 8 7 12 39 53 Average Rating 19 | 5 6 7 6 29 29 On Entrance 11 | . 6 7 7 12 39 Avg Prop Armor Cover (%) 6 | . . . . . 6 Naked Turns . | . . . . . . Heaviest Build 61 | 12 14 14 14 47 61 Greatest Support 60 | 20 20 20 20 56 60 Greatest Overweight (x) 9 | . . . . 1 9 Average Overweight (x) . | . . . . . 1 Largest Inventory Capacity 10 | 8 8 8 8 10 10 Average Capacity 8 | 6 8 8 8 8 10 Most Carried 10 | 5 8 7 8 10 10 Average Carried 6 | 2 6 7 7 6 6 Final Capacity 10 | 8 8 8 8 10 10 Final Carried 10 | 5 7 7 6 10 7 Class Distribution -------------------- 58% | Mutant 24% | Scavenger-Mutant 12% | Gunner 5% | Scavenger-Gunner Dominant Class ---------------- Mutant | -10/Materials Mutant | -10/Subcaves Mutant | -8/Scraptown Gunner | -6/Factory Scavenger-Mutant | -6/Extension Resources | -11 -10 -10 -8 -6 -6 ----------- Run | Yrd Mat Sub Scr Fac Ext Matter Collected 993 | 208 88 . . 74 623 Remotely . | . . . . . . Salvage Created 1056 | . 137 . . 117 802 Parts 51 | . 10 . . 10 31 Haulers Intercepted . | . . . . . . Recyclers Shooed . | . . . . . . Parts Field Recycled . | . . . . . . Retrieved Matter . | . . . . . . Parts Self-Destructed . | . . . . . . Prevented . | . . . . . . Parts Restored . | . . . . . . Kills | -11 -10 -10 -8 -6 -6 ------- Run | Yrd Mat Sub Scr Fac Ext Combat Hostiles Destroyed 21 | . 5 . . 2 14 Melee 2 | . . . . . 2 Guns 16 | . 5 . . 2 9 Classes Destroyed 8 | . 2 . . 2 4 Watcher 2 | . . . . . 2 Swarmer 3 | . 3 . . . . Grunt 6 | . 2 . . . 4 Sentry 7 | . . . . 1 6 Hunter 2 | . . . . . 2 Programmer 1 | . . . . 1 . Savage 1 | . . . . . 1 Butcher 1 | . . . . . 1 Best Kill Streak 3 | . 3 . . 1 3 Combat Bots Only 3 | . 3 . . 1 3 Max Kills in Single Turn 1 | . 1 . . 1 1 Gunslinging . | . . . . . . Exploded . | . . . . . . Melee 1 | . . . . . 1 Uniques/NPCs Destroyed . | . . . . . . Combat | -11 -10 -10 -8 -6 -6 -------- Run | Yrd Mat Sub Scr Fac Ext Hostile Shots Fired 526 | . 49 . . 35 442 Missed 174 | . 12 . . 18 144 Hits 352 | . 37 . . 17 298 Projectile 352 | . 37 . . 17 298 Critical Strikes 9 | . 2 . . 2 5 Damage Taken 4207 | . 417 . . 156 3634 Core 743 | . 125 . . 16 602 Absorbed by Shields . | . . . . . . Core Remaining (%) 75 | 100 . . 50 . . Volleys Fired 81 | . 21 . . 5 55 Largest 3 | . 2 . . 3 3 Hottest 138 | . 85 . . 118 138 Shots Fired 181 | . 42 . . 12 127 Gun 181 | . 42 . . 12 127 Cannon . | . . . . . . Launcher . | . . . . . . Special . | . . . . . . Kinetic 112 | . 21 . . 10 81 Thermal 69 | . 21 . . 2 46 Explosive . | . . . . . . Electromagnetic . | . . . . . . Robot Hit Streak 10 | . 8 . . 3 10 Robot Miss Streak 9 | . 2 . . 1 9 Penetration Max 1 | . . . . . 1 Secondary Targets 2 | . 1 . . . 1 Max Gunslinging Chain 1 | . 1 . . . 1 Shots Hit Robots 146 | . 20 . . 7 119 Core Hits 84 | . 10 . . 2 72 Critical Kills 9 | . . . . 2 7 Critical Parts Destroyed 6 | . . . . 1 5 Critical Strikes 21 | . 1 . . 4 16 Burn 4 | . 1 . . . 3 Destroy 13 | . . . . 4 9 Smash 4 | . . . . . 4 Melee Attacks 20 | . . . . . 20 Impact 20 | . . . . . 20 Slashing . | . . . . . . Piercing . | . . . . . . Sneak Attacks . | . . . . . . Combat Hostiles . | . . . . . . Follow-up Attacks . | . . . . . . Damage Inflicted 2498 | . 239 . . 64 2195 Guns 1797 | . 239 . . 64 1494 Cannons . | . . . . . . Explosions . | . . . . . . Melee 701 | . . . . . 701 Ramming . | . . . . . . Kinetic 1096 | . 90 . . 46 960 Thermal 701 | . 149 . . 18 534 Explosive . | . . . . . . Electromagnetic . | . . . . . . Impact 701 | . . . . . 701 Slashing . | . . . . . . Piercing . | . . . . . . Highest Corruption 1 | . . . . 1 1 Average Corruption 1 | . . . . 1 1 Corruption Purged . | . . . . . . Corruption Blocked . | . . . . . . Effects 7 | . . . . . 7 Message Errors 1 | . . . . . 1 Energy Discharges 4 | . . . . . 4 Parts Fused 1 | . . . . . 1 Data Loss (minor) 1 | . . . . . 1 Overload Shots . | . . . . . . Overflow Damage 125 | . . . . . 125 Projectiles . | . . . . . . Explosions . | . . . . . . Melee 125 | . . . . . 125 Knockbacks 3 | . . . . . 3 Impact 3 | . . . . . 3 Kinetic . | . . . . . . Secondary . | . . . . . . Self-Inflicted Damage . | . . . . . . Shots . | . . . . . . Rammed . | . . . . . . Targets Rammed . | . . . . . . Kicked . | . . . . . . Crushed . | . . . . . . Highest Temperature 199 | . 192 . . 126 199 Average Temperature 84 | . 80 . . 48 90 Received Heat Transfer 1155 | . 231 . . 12 912 Siege Activations . | . . . . . . Martial Activations . | . . . . . . Shielding Activations . | . . . . . . Robots Disrupted . | . . . . . . Combat Hostiles . | . . . . . . Robots Corrupted 4 | . . . . . 4 Combat Hostiles 3 | . . . . . 3 Parts Fried 6 | . . . . . 6 Impact Corruptions 6 | . . . . . 6 Robots Melted . | . . . . . . Combat Hostiles . | . . . . . . Parts Melted 3 | . 1 . . . 2 Heat Transferred 1910 | . 434 . . 37 1439 Parts Sabotaged . | . . . . . . Parts Stolen . | . . . . . . Parts Stripped . | . . . . . . Power Chain Reactions . | . . . . . . Alert | -11 -10 -10 -8 -6 -6 ------- Run | Yrd Mat Sub Scr Fac Ext Maximum Alert Level . | . . . . . . Low Security (%) 100 | 100 100 . . 100 100 Level 1 . | . . . . . . Level 2 . | . . . . . . Level 3 . | . . . . . . Level 4 . | . . . . . . Level 5 . | . . . . . . High Security . | . . . . . . Max Security . | . . . . . . Peak Influence 74 | . 74 . . 30 40 Initial 10 | . . . . . 10 Average 6 | . 22 . . 2 4 Influence Increases 538 | . 124 . . 60 354 Destroy 0b10 Robot/C 420 | . 100 . . 40 280 Destroy 0b10 Robot/NC 10 | . . . . . 10 Destroy Leader 74 | . 20 . . 20 34 Successful Hack 4 | . 4 . . . . Lose Combat Pursuer 30 | . . . . . 30 Influence Decreases 538 | . 60 64 . 38 376 Entered New Map 44 | . . 32 . . 12 Time Decay 331 | . 60 32 . 38 201 Lost Part 163 | . . . . . 163 Squads Dispatched 3 | . . . . 1 2 Investigation 1 | . . . . . 1 Extermination 1 | . . . . 1 . Reinforcement 1 | . . . . . 1 Assault . | . . . . . . Garrison . | . . . . . . Intercept . | . . . . . . Searches Triggered . | . . . . . . Construction Impeded . | . . . . . . Haulers Reinforced . | . . . . . . Active Scanning Responses . | . . . . . . Cargo Convoy Interrupts . | . . . . . . Stealth | -11 -10 -10 -8 -6 -6 --------- Run | Yrd Mat Sub Scr Fac Ext Distress Signals 2 | . 1 . . . 1 Communications Jammed . | . . . . . . Distress Signals . | . . . . . . Times Spotted 34 | . 7 . . 2 25 Peak Tracking Total 5 | . 5 . . 1 4 Tactical Retreats 1 | . . . . . 1 Traps | -11 -10 -10 -8 -6 -6 ------- Run | Yrd Mat Sub Scr Fac Ext Traps Triggered . | . . . . . . Indirectly . | . . . . . . Trap Hack Attempts . | . . . . . . Triggered . | . . . . . . Disarmed . | . . . . . . Reprogrammed . | . . . . . . Reused . | . . . . . . Traps Extracted . | . . . . . . Installed . | . . . . . . Triggered . | . . . . . . Machines | -11 -10 -10 -8 -6 -6 ---------- Run | Yrd Mat Sub Scr Fac Ext Machines Disabled . | . . . . . . Max in Single Turn . | . . . . . . Machines Repaired . | . . . . . . Machines Dismantled . | . . . . . . Machines Sabotaged . | . . . . . . Overloaded Fab Kills . | . . . . . . Hacking | -11 -10 -10 -8 -6 -6 --------- Run | Yrd Mat Sub Scr Fac Ext Machines Accessed 8 | . 2 . 2 2 2 Terminals 6 | . 2 . . 2 2 Fabricators . | . . . . . . Repair Stations . | . . . . . . Recycling Units . | . . . . . . Scanalyzers . | . . . . . . Garrison Access . | . . . . . . Total Hacks 30 | . 2 . 18 3 7 Successful 23 | . 2 . 18 2 1 Failed 7 | . . . . 1 6 Catastrophic 1 | . . . . . 1 Database Lockouts . | . . . . . . Manual 1 | . . . 1 . . Terminals 12 | . 2 . . 3 7 Fabricators . | . . . . . . Repair Stations . | . . . . . . Recycling Units . | . . . . . . Scanalyzers . | . . . . . . Garrison Access . | . . . . . . Terminal Hacks 23 | . 2 . 18 2 1 Record 19 | . . . 18 1 . Locate Traps 3 | . 2 . . 1 . Zone Layout 1 | . . . . . 1 Fabricator Hacks . | . . . . . . Repair Station Hacks . | . . . . . . Recycling Unit Hacks . | . . . . . . Scanalyzer . | . . . . . . Garrison Access Hacks . | . . . . . . Unauthorized Hacks . | . . . . . . Terminals . | . . . . . . Fabricators . | . . . . . . Repair Stations . | . . . . . . Recycling Units . | . . . . . . Scanalyzers . | . . . . . . Garrison Access . | . . . . . . Data Cores Recovered . | . . . . . . Used . | . . . . . . Hacking Detections 2 | . 1 . . . 1 Full Trace Events 1 | . . . . . 1 Feedback Events . | . . . . . . Feedback Blocked . | . . . . . . Robot Schematics Acquired . | . . . . . . Robots Built . | . . . . . . Authchips . | . . . . . . Time . | . . . . . . Total Robot Build Rating . | . . . . . . Part Schematics Acquired . | . . . . . . Parts Built . | . . . . . . Authchips . | . . . . . . Time . | . . . . . . Total Part Build Rating . | . . . . . . Part Studies Acquired . | . . . . . . Parts Repaired . | . . . . . . Time . | . . . . . . Parts Recycled . | . . . . . . Recycled Matter . | . . . . . . Retrieved Matter . | . . . . . . Retrieved Components . | . . . . . . Parts Scanalyzed . | . . . . . . Part Schematics Acquired . | . . . . . . Parts Damaged . | . . . . . . Bothacking | -11 -10 -10 -8 -6 -6 ------------ Run | Yrd Mat Sub Scr Fac Ext Used RIF Installer . | . . . . . . Robots Hacked . | . . . . . . Non-combat . | . . . . . . Combat . | . . . . . . Robot Hacks Applied . | . . . . . . Relay Couplers Released . | . . . . . . Fabnet Peak Effective % . | . . . . . . Robots Rewired . | . . . . . . Allies Hacked . | . . . . . . Hacks Repelled . | . . . . . . Allies | -11 -10 -10 -8 -6 -6 -------- Run | Yrd Mat Sub Scr Fac Ext Total Allies . | . . . . . . Largest Group . | . . . . . . Highest-Rated Group . | . . . . . . Highest-Rated Ally . | . . . . . . Total Orders . | . . . . . . Ally Attacks . | . . . . . . Total Damage . | . . . . . . Kills . | . . . . . . Allies Corrupted . | . . . . . . Allies Melted . | . . . . . . Intel | -11 -10 -10 -8 -6 -6 ------- Run | Yrd Mat Sub Scr Fac Ext Active Infowar (turns) 592 | . . . . . 592 Traps 592 | . . . . . 592 Robot Analysis Total . | . . . . . . Derelict Logs Recovered . | . . . . . . Drone Launches . | . . . . . . Drone Recoveries . | . . . . . . Exploration | -11 -10 -10 -8 -6 -6 ------------- Run | Yrd Mat Sub Scr Fac Ext Turns Passed 3025 | 87 212 119 934 403 1270 Spaces Moved 1912 | 64 117 100 771 288 572 Core 100 | 4 . . . . 96 Treads 132 | . . . . . 132 Legs 1477 | 60 117 100 771 288 141 Wheels 203 | . . . . . 203 Hover . | . . . . . . Flight . | . . . . . . Fastest Speed 50 | 50 120 120 120 120 90 Average Speed 137 | 115 120 120 120 129 174 Slowest Speed 500 | 120 120 120 120 190 500 Overloaded Moves . | . . . . . . Propulsion Burnouts . | . . . . . . Robots Hopped . | . . . . . . Potential Cave-ins . | . . . . . . Cave-ins Triggered . | . . . . . . Exploration Rate (%) 24 | 4 18 11 55 8 48 Regions Visited 5 Branch Regions 3 Pre-discovered Areas . | . . . . . . Known Exits Taken . | . . . . . . Unknown Exits Taken 5 | 1 1 1 1 1 . Scrap Searched . | . . . . . . Spaces Dug . | . . . . . . Terrain Destroyed . | . . . . . . Melee . | . . . . . . Projectile . | . . . . . . AOE . | . . . . . . Terrain Rammed . | . . . . . . Walls Destroyed . | . . . . . . Machines Disabled . | . . . . . . Actions | -11 -10 -10 -8 -6 -6 --------- Run | Yrd Mat Sub Scr Fac Ext Total 2099 | 74 153 99 781 305 687 Wait 5 | . 2 . . . 3 Move 1907 | 63 116 99 770 287 572 Hop . | . . . . . . Pick Up 22 | 5 4 . 1 5 7 Fast Attach 32 | 6 1 . 3 7 15 Attach 16 | . 2 . 1 1 12 Detach 6 | . 2 . 2 . 2 Swap 1 | . 1 . . . . Drop 8 | . 4 . 4 . . Fire 81 | . 21 . . 5 55 Melee 20 | . . . . . 20 Ram . | . . . . . . Kick . | . . . . . . Crush . | . . . . . . Escape Stasis . | . . . . . . Rewire 1 | . . . . . 1 Trap . | . . . . . . Miscellaneous . | . . . . . . Route ------- -11/Scrapyard -10/Materials -10/Subcaves -8/Scraptown -6/Factory -6/Extension History --------- Turn | Location | Event 25 | -11/Scrapyard | Discovered new exit (range 14) 88 | -11/Scrapyard | Entered Materials 242 | -10/Materials | Discovered new exit (range 6) 300 | -10/Materials | Entered Subcaves 301 | -10/Subcaves | Approached by a straggling Scientist 312 | -10/Subcaves | Shifting Twisted Machinery released Battle Cannon 320 | -10/Subcaves | Build established: Mutant 419 | -10/Subcaves | Entered Scraptown 577 | -8/Scraptown | Heard Great Nut preacher, LISTEN AND RECITE! 577 | -8/Scraptown | Visited TADAMA 633 | -8/Scraptown | Visited UFD Registry 646 | -8/Scraptown | Visited Cave Peace 697 | -8/Scraptown | Visited Cyclists 728 | -8/Scraptown | Visited Awakened 888 | -8/Scraptown | Discovered new exit (range 5) 1353 | -8/Scraptown | Entered Factory 1353 | -6/Factory | Evolved 8 slots: Power x2, Propulsion x2, Utility x2, Weapon x2 1641 | -6/Factory | Discovered new exit (range 15) 1756 | -6/Factory | Entered Extension 1866 | -6/Extension | Lost 5 parts (2p2n1w) 1964 | -6/Extension | Lost 3 parts (1p2w) 2105 | -6/Extension | Lost 7 parts (3p3n1w) 2188 | -6/Extension | Lost 6 parts (1p1n2u2w) 2389 | -6/Extension | Spotted B-75 Beast 2423 | -6/Extension | Spotted B-75 Beast 2436 | -6/Extension | Core integrity fell below 50% 2472 | -6/Extension | Lost 11 parts (3p3n2u3w) 2862 | -6/Extension | Build established: Scavenger-Mutant 3026 | -6/Extension | Self-destructed Last Messages --------------- U-05 Engineer enters Transfer Station. Acquired 10 matter. Attempting to rewire VH-HUN(g). Acquired Gatling Laser. Acquired 10 matter. Acquired Melee Analysis Suite. Acquired Lgt. Treads. System corrupted: Energy discharge (-13). Acquired 10 matter. Acquired Myomer Leg. System corrupted: Component data lost. Acquired Myomer Leg. SR|8KORECAA/RS#PIOTMQ&UM= System corrupted: Imp. Heat Sink fused. Connecting with Door Terminal... ALERT: Suspicious activity at Terminal E011. Dispatching Investigation squad. System corrupted: Energy discharge (-32). System corrupted: Energy discharge (-30). Flak Gun destroyed. Map ----- +----------------------------------------------------+ | | | | | | | | | | | | | | | | | | | | | | | | | | | | | ?????????????????????????????????????????????????? | | ?????????????????????????????????????????????????? | | ????????????????????###########??????????????????? | | ???######???????????# #??????????????????? | | ???####T############# #??????????????????? | | ???## " + #??????????????????? | | ???## " # ########### #??????????????????? | | ???#### # #????# / ######+#####??????????????????? | | ???###### #????# #??????????????????????? | | ????????# #????# ###### #??????????????????????? | | ????????# #????## ##????# #############??????????? | | ????????# #?????# T#????#@gggRwR % #??????????? | | ###?????# #?????# ##????############# #??????????? | | #????## ##????# #?????????????????#%#??????????? | | ###### ###### #?????????????????# #??????????? | | T #?????????????????# #??????????? | | ###### ########?????????????????# #??????????? | | #????#####????????????????????????# #??????????? | | ###?????????????????????????????????# #??????????? | | ????????????????????????????????????# #??????????? | | ????????????????????????????????????# #??????????? | | ????????????????????????????????????# #??????????? | | ????????????????????????????????????# #??????????? | | ????????????????????????????????????# #??????????? | | ????????????????????????????????????# #??????????? | | ????????????????????????????????????# #??????????? | | ????????????????????????????????????# #??????????? | | ????????????????????????????????????#%#??????????? | | ????????????????????????????????????# #??????????? | | ????????????????????????????????????#%####???????? | | ????????????????????????????????????# ##??#???? | | ??????????????????????????????????### ## ### ? | | ??????????#####???????????????????#"" "" " | | ?????###??# #??????????????????? %" " " " | | ?????# ??? ????????????????????#% | | ?????# #??? ??????????#???????### | +----------------------------------------------------+ Best States ------------- Heat Dissipation 51 Coolant Potential 65 Energy Generation 40 Energy Capacity 530 Matter Stores 300 Matter Capacity 300 Sight Range 16 Terrain Scan Density 10 Armor Coverage 150 Evasion (%) 55 Melee Accuracy 5 Target Analysis 5 Recoil Reduction 3 Item Schematics ----------------- None Robot Schematics ------------------ None Fabricated ------------ Nothing Repaired ---------- Nothing Studied --------- None Alien Tech Used ----------------- None Achievements -------------- Civilization 2243 Librarian Made in Tau Ceti IV More Dakka Please Please Form A Line Serviceable Loadout Challenges ------------ None Game ------ Seed GatlingMolecularMagmablaster Manual? 0 Play Time 00:41:42 Cumulative 5.7 hours Start 2026.02.02 @ 18:46:26 End 2026.02.02 @ 19:25:41 Sessions 1 Manual Loads 0 Difficulty Rogue Special Mode None Game No. 15 Rogue 15 Adventurer 0 Explorer 0 Win Type - Total 0 Types 0/0/0/0/0/0/0/0/0/0 Lore% 5 Gallery% 6 Achievement% 8 Wizard Run 0 Options --------- Layout 0 ASCII 1 Keyboard 1 Movement Numpad Keybinds 0 Fullscreen 1 Font 24/Smallcaps Map View 76x56 Zoom Use 0% Tactical HUD 0 Map Filters NONE Filters NONE Steam 1 RUN: b1948ca1-1b2d-48ee-814a-8556bb58f629